bitfinex/quotes_ETHUSD_20250529
["timestamp","ask_amount","ask_price","bid_price","bid_amount"]
[1748521739531,3.887,2708.4,2708.1,3.742573]
[1748521739849,3.887,2708.4,2708.1,0.05]
[1748521740388,3.887,2708.3,2708.1,0.05]
[1748521744717,1.3183,2708.6,2708.1,0.05]
[1748521744912,3.887,2708.3,2708.1,0.05]
[1748521746108,3.887,2708.3,2708.0,13.69270588]
[1748521746466,3.887,2708.3,2708.0,3.69270588]
[1748521746803,3.887,2708.3,2707.9,7.593314]
[1748521747016,3.887,2708.3,2708.0,13.69267238]
[1748521747309,3.887,2708.3,2708.0,3.69267238]
[1748521749438,5.01025584,2708.6,2708.0,3.69267238]
[1748521749607,3.886,2708.3,2708.0,3.69267238]
[1748521749948,3.886,2708.3,2707.9,3.69285919]
[1748521750096,3.886,2708.3,2708.1,3.69261744]
[1748521750439,3.886,2708.3,2708.0,3.69268877]
[1748521750997,3.886,2708.3,2708.0,13.69268877]
[1748521751393,3.886,2708.3,2708.0,3.69268877]
[1748521751994,3.886,2708.3,2708.0,13.69268877]
[1748521752187,3.886,2708.3,2708.0,3.69268877]
[1748521752442,3.886,2708.3,2707.9,17.07260609]
[1748521752660,3.886,2708.3,2708.0,10.0]
[1748521752811,3.886,2708.3,2708.0,13.69275335]
[1748521753199,3.886,2708.3,2707.9,3.04088181]
[1748521753508,3.886,2708.3,2708.0,3.6927579]
[1748521753706,3.886,2708.3,2708.0,13.6927579]
[1748521753911,3.886,2708.3,2708.0,3.6927579]
[1748521754105,3.886,2708.3,2708.0,10.0]
[1748521754626,3.886,2708.3,2708.0,8.0]
[1748521754809,3.886,2708.3,2707.9,11.69289855]
[1748521755014,3.886,2708.3,2708.0,3.69275878]
[1748521755739,3.886,2708.3,2707.9,8.0]
[1748521756097,3.886,2708.3,2708.0,3.69276084]
[1748521756293,3.886,2708.3,2708.0,3.19276084]
[1748521756829,3.886,2708.3,2707.8,0.37675148]
[1748521757032,3.886,2708.3,2708.0,3.69270304]
[1748521757549,3.886,2708.3,2708.0,13.69270304]
[1748521757744,3.886,2708.3,2708.0,10.0]
[1748521758340,3.886,2708.3,2707.9,2.72978]
[1748521758537,3.886,2708.3,2708.0,10.0]
[1748521758742,3.886,2708.3,2707.9,2.776924]
[1748521759054,3.886,2708.3,2707.9,8.0]
[1748521759909,4.96059553,2708.2,2707.8,0.3655729]
[1748521760114,3.886,2708.3,2707.4,11.69350466]
[1748521760115,1.2681,2707.9,2707.4,11.69350466]
[1748521760351,1.2681,2707.9,2707.6,8.0]
[1748521760527,5.1541,2707.9,2707.6,8.0]
[1748521761024,5.1541,2707.9,2707.6,8.37030068]
[1748521761225,1.2681,2707.9,2707.8,3.69303493]
[1748521761457,3.885,2707.9,2707.8,10.0]
[1748521761925,3.885,2707.9,2707.7,2.042045]
[1748521762251,3.885,2707.9,2707.7,2.043045]
[1748521762424,3.885,2707.9,2707.8,10.0]
[1748521762615,3.885,2707.9,2707.7,2.043045]
[1748521762814,3.885,2707.9,2707.8,10.0]
[1748521763974,3.885,2707.9,2707.7,2.067045]
[1748521764115,3.885,2707.9,2707.8,10.0]
[1748521764315,3.885,2707.9,2707.7,2.067045]
[1748521764516,3.885,2707.9,2707.8,10.0]
[1748521765225,1.2681,2708.1,2707.8,3.69302265]
[1748521765429,1.2681,2708.1,2707.8,13.6929796]
[1748521765639,3.885,2708.0,2707.8,3.6929796]
[1748521766055,3.885,2708.0,2707.8,10.0]
[1748521766364,1.2655,2708.4,2707.9,3.69281477]
[1748521766662,3.885,2708.3,2707.9,3.69289644]
[1748521767422,3.885,2708.3,2707.8,3.6929555]
[1748521767622,3.885,2708.3,2707.8,3.69296502]
[1748521767823,3.885,2708.3,2707.9,3.69287562]
[1748521768091,3.885,2708.3,2707.7,4.91812421]
[1748521768092,3.885,2708.3,2707.8,3.69295835]
[1748521768719,3.885,2708.3,2708.0,2.070969]
[1748521768921,3.885,2708.3,2707.9,3.6928882]
[1748521769140,3.885,2708.3,2707.8,13.69295365]
[1748521769334,3.885,2708.3,2707.9,12.187674]
[1748521769535,3.885,2708.3,2707.7,10.0]
[1748521769536,1.2935,2708.2,2707.7,10.0]
[1748521769740,4.98605856,2708.2,2707.8,10.0]
[1748521770119,4.98605856,2708.2,2707.6,8.37030068]
[1748521770120,1.2935,2708.2,2707.6,8.37030068]
[1748521770380,3.69270222,2708.1,2707.6,8.37030068]
[1748521770537,7.57782724,2708.0,2707.6,0.37030068]
[1748521770876,3.69310943,2707.8,2707.2,11.69377571]
[1748521771920,5.1542,2707.9,2707.4,3.69347895]
[1748521772251,5.1542,2707.9,2707.4,10.0]
[1748521772478,5.1542,2707.9,2707.4,13.69356087]
[1748521772648,5.1542,2707.9,2707.4,3.69356087]
[1748521773082,5.1542,2707.9,2707.4,13.69356087]
[1748521773431,5.1542,2707.9,2707.4,3.69356087]
[1748521773631,5.1542,2707.9,2707.4,10.0]
[1748521773632,1.2692,2707.9,2707.4,10.0]
[1748521773853,3.885,2707.8,2707.4,13.69349174]
[1748521774059,3.885,2707.8,2707.4,3.69349174]
[1748521775270,3.885,2707.8,2707.4,13.69351965]
[1748521775581,3.885,2707.8,2707.4,3.69351965]
[1748521776142,3.885,2707.8,2707.4,13.69351965]
[1748521776475,3.885,2707.8,2707.5,3.69343346]
[1748521776937,3.885,2707.8,2707.4,13.69350457]
[1748521777932,3.885,2707.8,2707.5,3.69344211]
[1748521778361,3.885,2707.8,2707.3,5.495507]
[1748521778573,3.885,2707.8,2707.4,10.0]
[1748521778743,3.884,2707.8,2707.4,11.323]
[1748521779541,3.884,2707.8,2707.4,10.0]
[1748521779747,1.3202,2707.7,2707.3,3.075507]
[1748521779971,1.3202,2707.7,2707.4,10.0]
[1748521780169,1.3202,2707.7,2707.3,3.074507]
[1748521780384,1.3202,2707.7,2707.4,10.0]
[1748521781490,1.84062,2707.7,2707.3,2.893107]
[1748521781784,1.84062,2707.7,2707.2,3.066507]
[1748521781957,1.3202,2707.7,2707.2,3.066507]
[1748521782284,1.3202,2707.7,2707.3,3.048107]
[1748521782639,1.3202,2707.7,2707.2,3.066507]
[1748521784385,3.884,2707.6,2707.1,0.05]
[1748521784592,3.884,2707.6,2707.1,0.41758818]
[1748521784743,3.884,2707.6,2707.1,0.05]
[1748521785952,4.40442,2707.6,2707.1,0.05]
[1748521786150,1.2171,2707.5,2707.1,0.05]
[1748521786867,1.2171,2707.5,2707.1,0.41872225]
[1748521787072,1.2171,2707.5,2707.1,0.05]
[1748521787525,4.40442,2707.6,2707.1,0.05]
[1748521787526,1.2956,2707.4,2707.1,0.05]
[1748521787678,5.1786,2707.4,2707.1,0.05]
[1748521791771,3.883,2707.3,2707.1,0.05]
[1748521794778,5.1786,2707.4,2707.1,0.05]
[1748521795115,1.2956,2707.4,2707.1,0.05]
[1748521796308,1.81346,2707.4,2707.1,0.05]
[1748521802715,1.2817,2707.9,2707.1,0.05]
[1748521806936,5.1637,2707.9,2707.1,0.05]
[1748521807673,4.92367769,2708.9,2707.1,0.05]
[1748521807674,1.2276,2708.5,2707.4,18.411356]
[1748521807853,1.2276,2708.5,2707.5,8.0]
[1748521808048,1.2276,2708.5,2707.2,1.2218]
[1748521808255,1.2276,2708.5,2707.6,13.902378]
[1748521808600,1.2276,2708.5,2707.5,8.0]
[1748521808805,1.2276,2708.5,2707.7,8.0]
[1748521808979,1.2276,2708.5,2707.5,8.0]
[1748521809180,1.2276,2708.5,2707.3,0.92718]
[1748521809369,1.2276,2708.5,2707.6,8.0]
[1748521809589,1.2276,2708.5,2707.4,0.214898]
[1748521809925,1.2276,2708.5,2707.8,8.0]
[1748521810076,1.2276,2708.5,2707.6,9.2881]
[1748521810413,1.2276,2708.5,2707.6,1.2881]
[1748521810573,1.73856,2708.5,2707.6,1.2881]
[1748521810774,1.73856,2708.5,2707.8,8.0]
[1748521811400,1.73856,2708.5,2707.6,1.2881]
[1748521811800,1.73856,2708.5,2707.7,5.696612]
[1748521812010,1.73856,2708.5,2707.7,8.0]
[1748521812216,0.46883252,2708.4,2707.8,8.0]
[1748521812495,0.46883252,2708.4,2707.7,5.696612]
[1748521812688,1.2276,2708.5,2707.8,8.0]
[1748521813033,1.2276,2708.5,2707.9,1.81630683]
[1748521814523,1.2276,2708.5,2708.1,8.0]
[1748521814719,1.2276,2708.5,2708.0,3.208615]
[1748521814923,1.2276,2708.5,2708.1,8.0]
[1748521815123,1.2276,2708.5,2707.7,4.608598]
[1748521815329,1.2276,2708.5,2708.2,1.81630683]
[1748521815500,1.3357,2708.8,2708.2,9.81630683]
[1748521815835,1.3357,2708.8,2708.0,8.0]
[1748521816017,1.3357,2708.8,2707.8,1.8963698]
[1748521816221,1.3357,2708.8,2708.2,8.0]
[1748521816421,1.3357,2708.8,2707.8,1.3067]
[1748521816629,1.3357,2708.8,2708.2,8.0]
[1748521816798,1.3357,2708.8,2707.9,1.81630683]
[1748521816990,1.3357,2708.8,2708.1,8.0]
[1748521817196,1.85727,2708.8,2708.0,4.606981]
[1748521817407,1.85727,2708.8,2707.9,9.81630683]
[1748521817408,1.3357,2708.8,2708.2,4.456792]
[1748521817606,1.3357,2708.8,2708.3,8.0]
[1748521817843,1.3357,2708.8,2707.9,1.81630683]
[1748521818046,1.3357,2708.8,2708.3,8.0]
[1748521818193,1.3357,2708.8,2708.1,6.891144]
[1748521818394,1.3357,2708.8,2708.3,10.0]
[1748521818608,1.3357,2708.8,2708.2,1.6132644]
[1748521818806,1.3357,2708.8,2708.4,8.0]
[1748521819099,1.3357,2708.8,2708.2,1.6132644]
[1748521819295,1.3357,2708.8,2708.3,10.0]
[1748521819511,1.3357,2708.8,2708.2,1.6132644]
[1748521819700,1.3357,2708.8,2708.4,8.0]
[1748521819910,1.3357,2708.8,2708.2,1.6132644]
[1748521820342,1.3357,2708.8,2708.4,8.0]
[1748521820638,1.3357,2708.8,2708.2,1.6132644]
[1748521820845,1.3357,2708.8,2708.3,10.0]
[1748521821139,1.3357,2708.8,2708.4,8.0]
[1748521821298,1.3357,2708.8,2708.2,1.6132644]
[1748521821495,1.3357,2708.8,2708.4,8.0]
[1748521822002,1.3357,2708.8,2708.3,10.19730472]
[1748521822003,1.3357,2708.8,2708.3,0.19730472]
[1748521822525,1.045,2709.6,2708.3,0.19730472]
[1748521822526,1.2659,2709.1,2708.4,11.06150683]
[1748521823136,1.2659,2709.1,2708.4,3.06150683]
[1748521824818,1.2659,2709.1,2708.5,14.987362]
[1748521825146,1.2659,2709.1,2708.6,9.80488688]
[1748521825354,1.2659,2709.1,2708.6,1.80488688]
[1748521825653,0.05,2709.9,2708.6,1.80488688]
[1748521825654,1.043,2709.7,2708.8,3.05410683]
[1748521825836,3.878,2709.6,2708.9,8.0]
[1748521826008,1.3017,2709.5,2708.9,8.0]
[1748521826214,1.3017,2709.5,2708.6,8.0]
[1748521826510,1.3017,2709.5,2708.4,9.3251]
[1748521826710,0.51797,2709.4,2708.6,8.0]
[1748521826906,0.51797,2709.4,2708.9,8.0]
[1748521827111,0.51797,2709.4,2708.6,8.0]
[1748521827312,0.51797,2709.4,2708.7,6.801906]
[1748521827508,0.51797,2709.4,2708.4,2.45897116]
[1748521827509,0.51797,2709.4,2708.4,10.45897116]
[1748521827742,1.3017,2709.5,2708.6,8.0]
[1748521828061,1.3017,2709.5,2708.5,14.03075127]
[1748521828062,1.3017,2709.5,2708.5,9.24725827]
[1748521828304,1.3017,2709.5,2708.6,9.90672]
[1748521828967,3.878,2709.4,2708.8,6.802906]
[1748521829248,3.878,2709.4,2708.9,8.0]
[1748521829448,3.878,2709.4,2708.5,1.24725827]
[1748521829673,3.878,2709.4,2708.8,6.638906]
[1748521829982,1.2034,2709.3,2708.6,8.0]
[1748521830275,1.2034,2709.3,2708.9,8.0]
[1748521830420,1.2034,2709.3,2708.6,8.0]
[1748521830609,1.2034,2709.3,2708.7,24.133721]
[1748521831658,1.2396,2709.2,2708.6,8.0]
[1748521831859,1.2396,2709.2,2708.4,8.0]
[1748521832156,1.2396,2709.2,2708.6,10.0]
[1748521832452,1.2396,2709.2,2708.2,1.3011]
[1748521832668,1.2396,2709.2,2708.3,2.449144]
[1748521832669,1.311,2709.1,2708.3,2.449144]
[1748521832865,1.311,2709.1,2708.2,29.687522]
[1748521833059,1.311,2709.1,2708.4,6.414103]
[1748521833265,1.311,2709.1,2708.5,10.0]
[1748521834458,3.877,2709.0,2708.5,10.0]
[1748521834677,3.877,2708.9,2708.4,6.114834]
[1748521834821,1.3078,2708.8,2708.5,10.0]
[1748521835021,1.3078,2708.8,2708.4,6.114834]
[1748521835230,1.3078,2708.8,2708.5,10.0]
[1748521835915,3.877,2708.8,2708.1,0.37363982]
[1748521836119,3.877,2708.8,2708.3,8.0]
[1748521836323,3.877,2708.8,2708.4,1.12057976]
[1748521836575,1.2677,2709.1,2708.5,8.0]
[1748521836872,5.1437,2709.1,2708.5,8.0]
[1748521837052,5.1437,2709.1,2708.7,10.0]
[1748521837878,5.1437,2709.1,2708.6,5.332106]
[1748521838224,5.1437,2709.1,2708.7,10.0]
[1748521838427,5.1437,2709.1,2708.6,5.152106]
[1748521838428,1.78207,2709.0,2708.6,5.152106]
[1748521838783,1.78207,2709.0,2708.7,10.0]
[1748521839262,1.78207,2709.0,2708.6,5.152106]
[1748521839592,1.2677,2709.0,2708.6,5.341106]
[1748521839773,1.2677,2709.0,2708.7,10.0]
[1748521839941,1.2677,2709.0,2708.6,5.341106]
[1748521840136,1.2677,2709.0,2708.7,10.0]
[1748521841141,1.2677,2709.0,2708.6,5.152106]
[1748521841331,1.2677,2709.0,2708.7,10.0]
[1748521841533,1.2677,2709.0,2708.6,5.152106]
[1748521841828,1.2677,2709.0,2708.6,5.115211]
[1748521842034,1.2677,2709.0,2708.7,10.0]
[1748521842378,0.55,2709.8,2708.7,10.0]
[1748521842379,1.2085,2709.5,2708.8,10.81630683]
[1748521842557,0.43883561,2710.1,2708.8,10.81630683]
[1748521842558,1.2085,2710.1,2709.3,14.419998]
[1748521842880,1.2085,2710.1,2709.6,8.0]
[1748521843172,1.2085,2710.1,2709.4,8.0]
[1748521843173,1.2085,2710.1,2709.4,20.464146]
[1748521843430,1.2085,2710.1,2709.6,8.0]
[1748521843569,1.2085,2710.1,2709.5,8.0]
[1748521843769,1.2085,2710.1,2709.7,8.0]
[1748521843969,1.2085,2710.1,2709.7,35.545248]
[1748521844197,1.2762,2710.3,2709.7,18.860834]
[1748521844615,1.2762,2710.3,2709.8,17.67099]
[1748521845510,1.2762,2710.3,2709.8,8.0]
[1748521846080,1.2969,2711.1,2710.0,46.285957]
[1748521846266,1.2969,2711.1,2710.4,8.0]
[1748521846532,0.05,2711.9,2710.8,8.0]
[1748521846674,1.2969,2711.5,2710.8,1.908404]
[1748521847506,1.2969,2711.5,2710.8,24.054717]
[1748521847712,1.2969,2711.5,2710.8,32.054717]
[1748521847894,1.2969,2711.5,2710.8,33.86618689]
[1748521848189,1.2969,2711.5,2710.8,23.27074589]
[1748521850505,1.2969,2711.5,2710.8,18.85048489]
[1748521850709,1.2969,2711.5,2710.8,14.765383]
[1748521851454,1.2969,2711.5,2710.8,16.57685289]
[1748521851802,0.05,2711.9,2711.3,1.81146989]
[1748521852117,0.05,2711.9,2711.0,10.0]
[1748521852118,1.2206,2711.8,2711.0,8.0]
[1748521852339,0.05,2711.9,2711.7,1.81146989]
[1748521853040,0.05,2711.9,2711.6,5.95035]
[1748521853198,0.05,2711.9,2711.7,10.0]
[1748521853399,0.05,2711.9,2711.5,1.2899]
[1748521853936,0.05,2711.9,2711.5,9.2899]
[1748521854138,0.05,2711.9,2711.6,0.92899]
[1748521854341,0.05,2711.9,2711.7,8.0]
[1748521854656,0.05,2711.9,2711.8,14.322652]
[1748521854839,0.05,2711.9,2711.8,11.26239]
[1748521860402,1.2583,2712.7,2711.9,8.0]
[1748521860530,1.2583,2712.7,2712.3,8.0]
[1748521861041,1.2583,2712.7,2712.2,8.0]
[1748521861237,0.05,2712.9,2712.2,8.0]
[1748521862771,0.05,2712.9,2712.2,4.4786]
[1748521863070,0.05,2712.9,2712.3,8.0]
[1748521863274,0.05,2712.9,2712.3,8.93041]
[1748521863505,0.05,2712.9,2712.4,1.81146989]
[1748521863784,0.05,2713.9,2713.8,3.68486992]
[1748521863985,0.05,2713.9,2713.8,59.81146989]
[1748521864296,0.05,2714.9,2714.2,50.0]
[1748521864439,0.05,2714.9,2714.1,9.3021]
[1748521864440,0.05,2714.9,2714.6,4.76535]
[1748521864638,0.05,2714.9,2714.5,1.81146989]
[1748521864639,0.05,2714.9,2714.8,12.76286]
[1748521866081,0.05,2714.9,2714.7,0.37203306]
[1748521866380,0.05,2714.9,2714.7,1.81146989]
[1748521866688,0.05,2714.9,2714.8,9.822832]
[1748521867579,0.05,2714.9,2714.8,5.882007]
[1748521867935,0.05,2714.9,2714.4,16.542767]
[1748521868181,0.05,2714.9,2714.8,9.249436]
[1748521868534,0.05,2714.9,2714.8,12.93294859]
[1748521868748,0.05,2714.9,2714.8,9.249436]
[1748521868954,0.05,2714.9,2714.8,12.93294859]
[1748521869343,0.05,2714.9,2714.8,20.93294859]
[1748521869766,0.05,2714.9,2714.8,17.249436]
[1748521870226,0.05,2715.9,2715.8,5.626]
[1748521870359,0.05,2715.9,2715.8,13.626]
[1748521870569,0.05,2715.9,2715.8,15.43746989]
[1748521870762,0.05,2715.9,2715.8,8.0]
[1748521871003,1.199,2715.9,2715.8,8.0]
[1748521872414,1.7259,2715.9,2715.8,8.0]
[1748521873114,3.68220003,2715.8,2715.4,8.0]
[1748521873266,5.4080172,2715.9,2715.2,5.49432378]
[1748521873464,5.4080172,2715.9,2715.4,6.182065]
[1748521873662,5.4080172,2715.9,2715.2,5.49432378]
[1748521873663,4.51589252,2715.8,2715.6,8.0]
[1748521873863,0.45289252,2715.8,2715.4,6.192265]
[1748521874133,4.51389252,2715.8,2715.3,3.68278398]
[1748521874282,4.51389252,2715.8,2715.4,16.192265]
[1748521874614,4.51389252,2715.8,2715.4,8.0]
[1748521875184,4.51389252,2715.8,2715.4,11.68269195]
[1748521875385,4.51389252,2715.8,2715.4,8.0]
[1748521875633,0.45289252,2715.8,2715.4,11.68266586]
[1748521875842,4.056,2715.8,2715.4,8.0]
[1748521876198,1.199,2715.9,2715.6,8.0]
[1748521876742,1.199,2715.9,2715.5,1.81146989]
[1748521877393,1.199,2715.9,2715.5,5.49403095]
[1748521877605,4.051,2715.8,2715.5,1.81146989]
[1748521877828,1.7851,2715.7,2715.0,17.21758]
[1748521878026,5.46746338,2715.7,2715.2,5.730291]
[1748521878236,5.46746338,2715.7,2715.4,10.0]
[1748521878450,4.049,2715.6,2715.5,8.0]
[1748521878595,4.049,2715.6,2715.2,15.230291]
[1748521878893,3.68276212,2715.4,2714.9,1.81146989]
[1748521879093,4.1373908,2715.5,2714.9,12.736686]
[1748521879293,4.1373908,2715.5,2714.6,1.3102]
[1748521879294,0.45479252,2715.5,2714.7,10.0]
[1748521879494,0.45479252,2715.5,2714.5,10.0]
[1748521879733,0.45479252,2715.5,2713.1,1.198]
[1748521879734,1.3256,2714.8,2714.0,3.07426989]
[1748521879966,3.6828343,2715.3,2713.7,0.36965087]
[1748521879967,3.68391969,2714.5,2713.7,0.36965087]
[1748521880132,1.3256,2714.6,2714.1,0.30757253]
[1748521880133,3.68432687,2714.2,2714.1,0.30757253]
[1748521880697,4.99022687,2714.2,2714.1,0.30757253]
[1748521880895,5.54022687,2714.2,2714.1,0.30757253]
[1748521881300,9.03922687,2714.2,2714.1,0.30757253]
[1748521881501,5.8789,2714.2,2714.1,0.30757253]
[1748521881691,5.51522687,2714.2,2714.1,0.30757253]
[1748521882053,4.99022687,2714.2,2714.1,0.30757253]
[1748521882259,9.03722687,2714.2,2714.1,0.30757253]
[1748521882851,4.99022687,2714.2,2714.1,0.30757253]
[1748521883059,4.99022687,2714.2,2713.5,11.68515594]
[1748521883579,4.99024396,2714.2,2713.5,8.0]
[1748521883710,3.68481172,2713.9,2713.5,8.0]
[1748521883894,1.148,2713.9,2713.5,8.0]
[1748521884247,3.68493435,2713.8,2713.5,8.0]
[1748521884455,4.83279685,2713.9,2713.5,8.0]
[1748521884595,1.148,2713.9,2713.5,8.0]
[1748521884822,3.68494573,2713.8,2713.2,2.465614]
[1748521884998,3.68494573,2713.8,2713.3,10.0]
[1748521885220,1.62876812,2713.9,2713.4,18.0]
[1748521885401,1.62876812,2713.9,2713.3,8.0]
[1748521885612,4.8327403,2713.9,2713.3,11.68549195]
[1748521885818,1.148,2713.9,2713.5,8.0]
[1748521886231,4.83273619,2713.9,2713.3,11.68548382]
[1748521886505,1.148,2713.9,2713.2,8.0]
[1748521886717,3.68501852,2713.7,2713.2,8.0]
[1748521887135,3.6851446,2713.6,2713.1,0.05]
[1748521887351,7.71988595,2713.8,2713.1,0.05]
[1748521887352,1.2739,2713.7,2713.1,0.05]
[1748521887516,4.95901105,2713.7,2713.1,0.05]
[1748521887719,3.6856519,2713.3,2713.1,0.05]
[1748521888053,4.04,2713.4,2713.1,0.05]
[1748521888232,0.404,2713.4,2713.1,0.05]
[1748521888571,1.2739,2713.7,2713.1,0.05]
[1748521888800,4.037,2713.6,2713.1,13.73575786]
[1748521889082,4.037,2713.6,2713.1,13.73575617]
[1748521889288,4.037,2713.6,2713.1,13.73580155]
[1748521889450,4.037,2713.6,2713.1,3.73580155]
[1748521889649,1.2739,2713.7,2713.1,3.73580155]
[1748521889848,5.3079,2713.7,2713.1,3.73580155]
[1748521890047,1.148,2713.9,2713.2,8.0]
[1748521890250,1.0,2713.5,2713.2,8.0]
[1748521890772,1.0,2713.5,2713.3,3.68546953]
[1748521891275,1.0,2713.5,2713.4,3.68541313]
[1748521891576,1.148,2713.8,2713.4,8.0]
[1748521892131,3.68474558,2713.9,2713.4,8.0]
[1748521892462,1.148,2713.9,2713.4,11.68534243]
[1748521892781,1.2635,2714.3,2713.5,11.36276]
[1748521892978,1.2635,2714.3,2713.8,3.68477126]
[1748521893145,2.4115,2714.3,2713.8,3.68477126]
[1748521893935,1.2635,2714.3,2713.8,3.68477126]
[1748521894134,2.3995,2714.3,2713.8,3.68477126]
[1748521894373,4.94771561,2714.3,2713.8,3.68485929]
[1748521894777,1.2635,2714.3,2714.0,8.0]
[1748521894981,1.2635,2714.3,2713.9,8.0]
[1748521895275,3.68412947,2714.4,2713.8,3.68481054]
[1748521895276,4.82007148,2714.4,2713.8,3.68479074]
[1748521895434,4.90608688,2714.6,2713.8,9.0415316]
[1748521895435,1.2222,2714.6,2713.8,9.0415316]
[1748521895639,2.3582,2714.6,2714.0,10.0]
[1748521895875,2.3582,2714.6,2713.8,9.0415316]
[1748521896034,0.5,2714.4,2714.0,8.0]
[1748521896234,0.5,2714.4,2714.2,3.68424815]
[1748521896587,4.025,2714.8,2714.2,5.22113657]
[1748521896588,8.84256473,2714.8,2714.2,5.22113657]
[1748521896754,5.159,2714.8,2714.3,3.68418238]
[1748521896937,8.84251342,2714.8,2714.3,3.68418238]
[1748521897132,5.159,2714.8,2714.3,3.68418238]
[1748521897339,1.2392,2714.9,2714.3,1.30114121]
[1748521897561,1.136,2715.0,2714.6,3.68370757]
[1748521897761,10.08840898,2715.2,2714.6,3.68370757]
[1748521898074,10.08840898,2715.2,2714.5,8.0]
[1748521898075,6.06738343,2715.2,2714.5,8.0]
[1748521898283,3.6831262,2715.1,2714.5,11.6838468]
[1748521898502,3.68384859,2714.6,2714.1,8.0]
[1748521898665,3.68366655,2714.7,2714.1,8.0]
[1748521898868,3.6838764,2714.6,2714.1,8.0]
[1748521899199,7.70256547,2714.8,2713.9,4.92480562]
[1748521899200,7.70258538,2714.8,2714.2,13.68430119]
[1748521899473,4.98772651,2714.5,2714.0,8.0]
[1748521899683,3.68419916,2714.3,2713.8,11.0415316]
[1748521899839,3.6842648,2714.3,2713.8,1.0415316]
[1748521900152,3.6844276,2714.2,2713.7,11.68499567]
[1748521900335,3.6844276,2714.2,2713.6,9.2861]
[1748521900540,3.6844276,2714.2,2713.6,12.97111478]
[1748521900753,3.68424588,2714.3,2713.8,8.0]
[1748521900955,8.83310366,2714.4,2713.7,2.164253]
[1748521901258,3.68453093,2714.1,2713.8,8.0]
[1748521901440,3.68508281,2713.7,2713.1,3.73574909]
[1748521901645,3.68521835,2713.6,2713.2,0.30767455]
[1748521901877,3.68528005,2713.5,2713.2,0.30767455]
[1748521902081,4.013,2714.0,2713.2,0.30767455]
[1748521902266,3.68496384,2713.8,2713.2,0.30767455]
[1748521902473,3.68496384,2713.8,2713.2,3.99329153]
[1748521902789,3.68496384,2713.8,2713.2,3.99330794]
[1748521902790,3.68489206,2713.8,2713.2,3.99330794]
[1748521902954,4.22023315,2713.9,2713.3,3.68548589]
[1748521903155,5.146,2713.8,2713.4,8.0]
[1748521903406,3.68407811,2714.4,2713.4,8.0]
[1748521903407,1.3429,2714.4,2713.4,2.19931604]
[1748521903703,3.68444195,2714.2,2713.5,8.0]
[1748521903885,3.68463307,2714.0,2713.5,8.0]
[1748521904862,7.69060598,2714.0,2713.5,8.0]
[1748521905100,4.006,2714.0,2713.5,3.68515375]
[1748521905284,4.006,2714.0,2713.5,11.68521629]
[1748521905616,8.82452942,2714.1,2713.5,11.68521629]
[1748521905759,5.14,2714.1,2713.5,11.68521629]
[1748521907078,5.14,2714.1,2713.6,3.68513255]
[1748521907994,8.82447844,2714.1,2713.5,11.68520862]
[1748521908199,8.82447844,2714.1,2713.6,3.68513686]
[1748521908200,5.14,2714.1,2713.6,3.68513686]
[1748521908523,5.14,2714.1,2713.6,13.68513686]
[1748521908718,5.14,2714.1,2713.6,3.68513686]
[1748521908881,5.14,2714.1,2713.6,13.68513686]
[1748521909689,3.993,2714.1,2713.7,3.68500571]
[1748521909892,3.998,2714.1,2713.8,8.0]
[1748521910107,3.998,2714.1,2713.6,3.68508398]
[1748521910326,4.5114,2714.1,2713.7,8.0]
[1748521910684,3.68468904,2714.0,2713.3,3.68553269]
[1748521910883,5.01286278,2714.0,2713.5,8.0]
[1748521911211,0.5,2713.9,2713.5,11.68523637]
[1748521911926,0.5,2713.9,2713.5,8.0]
[1748521912093,0.5,2713.9,2713.4,11.68531028]
[1748521912287,0.5,2713.9,2713.6,3.6850575]
[1748521912482,0.5,2713.9,2713.7,8.0]
[1748521912687,5.131,2714.0,2713.7,8.0]
[1748521913495,5.131,2714.0,2713.6,8.0]
[1748521914229,1.311,2713.9,2713.1,0.05]
[1748521914533,4.9966848,2713.2,2713.1,0.05]
[1748521914737,10.1256848,2713.2,2713.1,0.05]
[1748521915442,10.6756848,2713.2,2713.1,0.05]
[1748521915631,10.6726848,2713.2,2713.1,0.05]
[1748521916323,11.2726848,2713.2,2713.1,0.05]
[1748521916842,9.4086848,2713.2,2713.1,0.05]
[1748521916985,11.2893848,2713.2,2713.1,0.05]
[1748521919224,7.3023848,2713.2,2713.1,0.05]
[1748521919419,11.2903848,2713.2,2713.1,0.05]
[1748521919819,2.4807,2713.2,2713.1,0.05]
[1748521920026,7.0607,2713.2,2713.1,0.05]
[1748521920512,3.0667,2713.2,2713.1,0.05]
[1748521920706,7.0597,2713.2,2713.1,0.05]
[1748521921144,10.7453848,2713.2,2713.1,0.05]
[1748521921326,11.2953848,2713.2,2713.1,0.05]
[1748521922175,3.68583382,2713.1,2712.3,3.68681328]
[1748521922444,7.6087,2713.2,2712.7,3.68625385]
[1748521922445,5.131,2713.0,2712.7,3.68625385]
[1748521922648,5.131,2713.0,2712.5,3.68655111]
[1748521922815,5.131,2713.0,2712.6,3.68649553]
[1748521923210,1.9307,2713.2,2712.5,3.68661842]
[1748521923463,1.9307,2713.2,2712.7,3.68635194]